bitfinex-derivatives/quotes_SOLF0:USTF0_20250224
["timestamp","ask_amount","ask_price","bid_price","bid_amount"]
[1740428845427,11.78,151.21,151.14,0.04564031]
[1740428845634,11.78,151.21,151.15,6.617]
[1740428845831,11.78,151.21,151.16,3.9145]
[1740428846030,31.6,151.21,151.14,0.04564031]
[1740428846236,11.78,151.21,151.14,0.04564031]
[1740428847335,6.6167,151.16,151.14,0.04564031]
[1740428848534,11.78,151.21,151.14,0.04564031]
[1740428855433,0.60276166,151.22,151.14,0.04564031]
[1740428855636,12.38276166,151.22,151.14,0.04564031]
[1740428857840,32.20276166,151.22,151.14,0.04564031]
[1740428859436,0.0805,151.21,151.14,0.04564031]
[1740428863639,19.82,151.2,151.14,0.04564031]
[1740428863841,31.58,151.2,151.14,0.04564031]
[1740428869449,11.76,151.19,151.14,0.04564031]
[1740428870358,11.76,151.21,151.14,0.04564031]
[1740428871253,31.58,151.21,151.14,0.04564031]
[1740428872757,11.76,151.21,151.14,0.04564031]
[1740428879063,31.58,151.21,151.14,0.04564031]
[1740428879265,31.662,151.21,151.14,0.04564031]
[1740428887969,0.082,151.21,151.14,0.04564031]
[1740428888269,11.76,151.2,151.14,0.04564031]
[1740428888770,31.58,151.2,151.14,0.04564031]
[1740428891772,11.76,151.19,151.14,0.04564031]
[1740428892573,20.42276166,151.22,151.14,0.04564031]
[1740428892772,11.76,151.18,151.14,0.04564031]
[1740428894262,31.58,151.18,151.07,76.49295854]
[1740428894467,31.62730846,151.18,151.07,76.49295854]
[1740428894663,31.58,151.18,151.07,76.49295854]
[1740428895575,0.04787784,151.14,151.11,0.04549783]
[1740428901175,0.04787784,151.14,151.11,0.00249783]
[1740428901378,0.04787784,151.14,151.05,72.56705854]
[1740428901680,19.82,151.12,151.05,72.56705854]
[1740428901867,19.82,151.12,151.04,72.56705854]
[1740428902071,1.32353914,151.11,151.04,72.52805854]
[1740428902471,0.04637052,151.09,151.06,0.04930976]
[1740428903478,1.32380195,151.08,151.06,0.04930976]
[1740428903672,31.56,151.07,151.06,0.04930976]
[1740428909386,11.74,151.07,151.06,0.04930976]
[1740428913691,1.32380195,151.08,151.06,0.04930976]
[1740428913884,73.58696326,151.25,151.06,0.04930976]
[1740428913885,11.74,151.12,151.06,0.04930976]
[1740428914689,11.74,151.16,151.06,0.04930976]
[1740428914885,11.74,151.16,151.0,4.96485863]
[1740428915090,0.04511565,151.13,151.09,0.04233088]
[1740428915285,11.74,151.16,151.09,0.04233088]
[1740428915491,0.04689898,151.13,151.09,0.04233088]
[1740428917595,4.08989898,151.13,151.09,0.04233088]
[1740428918094,23.90989898,151.13,151.09,0.04233088]
[1740428919397,0.04689898,151.13,151.09,0.04233088]
[1740428920291,19.86689898,151.13,151.09,0.04233088]
[1740428922492,0.04689898,151.13,151.09,0.04233088]
[1740428923297,11.74,151.12,151.09,0.04233088]
[1740428923693,5.5094,151.12,151.09,0.04233088]
[1740428926498,25.3294,151.12,151.09,0.04233088]
[1740428928499,29.3364,151.12,151.01,4.1469]
[1740428928700,30.65985156,151.12,151.01,4.1469]
[1740428929501,0.04388071,151.08,151.05,0.04196399]
[1740428930703,11.78388071,151.08,151.05,0.04196399]
[1740428934914,31.60388071,151.08,151.05,0.04196399]
[1740428935310,11.78388071,151.08,151.05,0.04196399]
[1740428936415,31.60388071,151.08,151.05,0.04196399]
[1740428943021,0.04388071,151.08,151.05,0.04196399]
[1740428943217,11.72,151.07,151.05,0.04196399]
[1740428943711,0.04388071,151.08,151.05,0.04196399]
[1740428943918,11.76388071,151.08,151.05,0.04196399]
[1740428944821,11.72,151.15,151.05,0.04196399]
[1740428945021,31.54,151.15,150.99,191.0]
[1740428945820,0.04671752,151.09,151.05,0.04847132]
[1740428946121,0.04671752,151.09,150.98,3.8249]
[1740428946316,31.54,151.15,151.05,0.04191601]
[1740428946513,31.54,151.15,150.98,3.8249]
[1740428946714,0.04866462,151.12,151.08,0.04982415]
[1740428946918,11.72,151.15,151.08,0.04982415]
[1740428947121,0.0461289,151.12,151.08,0.04982415]
[1740428953424,11.72,151.11,151.08,0.04982415]
[1740428956925,11.72,151.1,151.08,0.04982415]
[1740428959130,31.54,151.1,150.98,3.8249]
[1740428960225,0.04353238,151.06,151.02,0.0480081]
[1740428961332,11.72,151.07,151.02,0.0480081]
[1740428962532,0.04800223,151.06,151.02,0.0480081]
[1740428962825,0.04518827,151.06,151.02,0.04584405]
[1740428963233,19.82,151.15,151.02,0.04584405]
[1740428963532,11.72,151.14,150.98,23.6849]
[1740428964432,11.72,151.14,151.04,0.04166679]
[1740428964734,11.72,151.14,151.07,0.05008836]
[1740428965236,11.72,151.13,151.07,0.05008836]
[1740428968140,31.54,151.13,151.07,0.05008836]
[1740428968639,11.72,151.13,151.07,0.05008836]
[1740428971440,19.82,151.18,151.07,0.05008836]
[1740428971642,11.7,151.16,150.99,91.9352075]
[1740428971843,11.7,151.16,151.1,0.04306462]
[1740428972142,173.2,151.2,151.11,0.0474422]
[1740428972344,173.2,151.2,151.03,19.86]
[1740428972345,11.7,151.19,151.03,19.86]
[1740428972537,173.2,151.2,151.14,0.0493565]
[1740428972737,11.7,151.19,151.15,0.04556148]
[1740428972939,11.7,151.19,151.05,4.0648]
[1740428973139,11.7,151.19,151.15,0.04950561]
[1740428973340,11.7,151.19,151.15,0.05046357]
[1740428974842,173.2,151.2,151.15,0.05046357]
[1740428975040,11.7,151.19,151.15,0.05046357]
[1740428976543,31.52,151.19,151.15,0.05046357]
[1740428977437,19.82,151.19,151.15,0.05046357]
[1740428977746,11.7,151.18,151.15,0.05046357]
[1740428978047,19.82,151.19,151.15,0.05046357]
[1740428978241,11.7,151.18,151.15,0.05046357]
[1740428978946,173.2,151.2,151.15,0.05046357]
[1740428979139,184.9,151.2,151.15,0.05046357]
[1740428980446,204.75,151.2,151.15,0.05046357]
[1740428984340,193.05,151.2,151.15,0.05046357]
[1740428984544,31.55,151.19,151.15,0.05046357]
[1740428988854,19.85,151.19,151.15,0.05046357]
[1740428989054,11.7,151.18,151.15,0.05046357]
[1740428997448,173.2,151.2,151.15,0.05046357]
[1740428997849,11.68,151.19,151.15,0.05046357]
[1740429000250,78.31167554,151.25,151.15,0.05046357]
[1740429000450,11.68,151.27,151.07,173.1]
[1740429000754,11.68,151.27,151.18,0.04286183]
[1740429003958,11.68,151.29,151.18,0.04286183]
[1740429004258,11.68,151.29,151.22,0.04590059]
[1740429004453,11.68,151.3,151.22,0.04590059]
[1740429004651,11.68,151.31,151.14,222.7642]
[1740429004858,11.68,151.31,151.24,0.04958743]
[1740429005057,19.85,151.36,151.24,0.04958743]
[1740429005252,7.8518,151.37,151.15,1.02092801]
[1740429005456,11.68,151.36,151.28,0.04861277]
[1740429005663,11.68,151.36,151.17,1.02092801]
[1740429005964,11.68,151.36,151.18,19.86]
[1740429006260,11.68,151.36,151.25,0.04234339]
[1740429006559,11.68,151.36,151.19,1.02092801]
[1740429006757,11.68,151.36,151.29,0.04451382]
[1740429008759,11.68,151.38,151.29,0.04451382]
[1740429009063,11.68,151.38,151.23,1.02043485]
[1740429009263,11.68,151.38,151.32,0.0470026]
[1740429009464,78.25607016,151.41,151.32,0.0470026]
[1740429009666,11.68,151.39,151.32,0.0470026]
[1740429012166,78.25607016,151.41,151.32,0.0470026]
[1740429012462,11.66,151.4,151.32,0.0470026]
[1740429012664,7.9008,151.47,151.23,210.86]
[1740429012866,11.66,151.46,151.34,0.04825471]
[1740429013164,11.66,151.46,151.25,1.02303546]
[1740429013366,11.66,151.46,151.38,0.04447473]
[1740429013569,11.66,151.46,151.27,19.86]
[1740429013762,11.66,151.46,151.4,0.04779272]
[1740429013964,11.66,151.46,151.34,0.04401661]
[1740429014266,11.66,151.46,151.29,24.0043]
[1740429014465,11.66,151.46,151.38,0.04958408]
[1740429015070,19.85,151.45,151.38,0.04958408]
[1740429016472,19.85,151.45,151.3,6.6101]
[1740429016765,1.21345835,151.44,151.3,6.6101]
[1740429017068,19.85,151.42,151.26,4.0036]
[1740429017268,19.85,151.4,151.23,7.7847]
[1740429017479,19.85,151.38,151.18,4.0451]
[1740429017770,0.04675576,151.33,151.3,2.866e-05]
[1740429017971,6.6134,151.24,151.18,7.8391]
[1740429018171,11.66,151.28,151.18,7.8391]
[1740429018470,15.4619,151.27,151.18,3.794]
[1740429019066,6.614,151.22,151.21,0.04613259]
[1740429020372,0.05032244,151.24,151.21,0.04613259]
[1740429022670,6.6136,151.23,151.21,0.04613259]
[1740429023070,0.05032244,151.24,151.21,0.04613259]
[1740429023469,6.614,151.22,151.21,0.04613259]
[1740429023676,0.05032244,151.24,151.14,4.0451]
[1740429023973,6.6163,151.17,151.14,4.0451]
[1740429024275,11.66,151.21,151.11,7.9209]
[1740429024468,11.66,151.2,151.11,7.9209]
[1740429024672,11.66,151.2,151.11,14.5396]
[1740429024870,0.04742979,151.17,151.14,0.04338413]
[1740429025677,6.6171,151.15,151.14,8.413e-05]
[1740429027678,18.2771,151.15,151.14,8.413e-05]
[1740429029582,38.1271,151.15,151.14,8.413e-05]
[1740429029983,18.2771,151.15,151.14,8.413e-05]
[1740429032881,38.1271,151.15,151.14,8.413e-05]
[1740429033083,18.2771,151.15,151.14,8.413e-05]
[1740429036182,38.1271,151.15,151.14,8.413e-05]
[1740429037281,18.2771,151.15,151.14,8.413e-05]
[1740429037989,38.1271,151.15,151.14,8.413e-05]
[1740429038785,6.6206,151.07,151.06,6.357e-05]
[1740429039591,6.6203,151.08,151.06,6.357e-05]
[1740429039795,0.04580607,151.08,151.06,6.357e-05]
[1740429041196,0.04580607,151.08,151.06,6.62096357]
[1740429042999,0.04580607,151.08,151.06,6.357e-05]
[1740429043203,6.6206,151.07,151.06,6.357e-05]
[1740429043399,6.6206,151.07,151.05,0.04785956]
[1740429043606,19.85,151.07,150.96,7.6219]
[1740429043807,19.85,151.07,150.96,3.8144]
[1740429044404,19.85,151.07,150.95,0.1]
[1740429044603,21.17397722,151.06,151.0,0.04572786]
[1740429044797,0.04228566,151.03,150.95,0.1]
[1740429045106,6.6249,150.98,150.95,0.1]
[1740429045304,11.66,151.02,150.95,0.1]
[1740429045698,1.32397722,151.06,150.95,0.1]
[1740429045900,0.04217188,151.0,150.97,0.04690535]
[1740429047004,0.04217188,151.0,150.97,4.01420535]
[1740429049409,0.04217188,151.0,150.97,10.63920535]
[1740429051409,0.04217188,151.0,150.97,0.04690535]
[1740429052010,0.04217188,151.0,150.97,6.67150535]
[1740429054507,0.04217188,151.0,150.98,6.6242]
[1740429058515,6.622,151.04,150.97,0.04690535]
[1740429058714,6.622,151.04,150.96,11.7213]
[1740429059112,6.622,151.04,150.99,6.6238]
[1740429059516,0.04881338,151.03,151.0,0.05026511]
[1740429062422,11.66,151.08,151.0,0.05026511]
[1740429062617,0.57014625,151.11,151.0,0.05026511]
[1740429062816,11.66,151.1,150.96,31.5813]
[1740429063011,6.619,151.11,151.06,6.6206]
[1740429063213,7.872,151.17,150.98,210.86]
[1740429063214,11.66,151.15,150.98,210.86]
[1740429063415,27.59511122,151.19,150.98,210.86]
[1740429063620,6.6161,151.18,151.12,6.6182]
[1740429064022,27.59511122,151.19,151.06,19.86]
[1740429064216,27.59511122,151.19,151.07,7.7022]
[1740429064923,0.04245865,151.15,151.11,0.04632011]
[1740429065125,6.65955865,151.15,151.11,0.04632011]
[1740429065630,0.04245865,151.15,151.11,0.04632011]
[1740429066836,8.0423,151.25,151.11,0.04632011]
[1740429067023,6.6143,151.22,151.07,27.5622]
[1740429067218,76.68197331,151.26,151.07,27.5622]
[1740429067418,11.66,151.25,151.07,27.5622]
[1740429067725,6.6135,151.24,151.17,6.6161]
[1740429067928,6.631e-05,151.18,151.14,0.04989201]
[1740429068120,27.59511122,151.31,151.14,210.86]
[1740429068321,27.59511122,151.31,151.15,4.0954]
[1740429068524,47.44511122,151.31,151.15,4.0954]
[1740429068827,1.21435457,151.3,151.15,4.0954]
[1740429069032,47.44511122,151.31,151.19,6.6152]
[1740429069227,1.21436262,151.3,151.19,6.6152]
[1740429069427,0.04877707,151.27,151.23,0.04364546]
[1740429070228,6.6131,151.24,151.23,4.546e-05]
[1740429071923,6.66067707,151.27,151.23,4.546e-05]
[1740429072131,0.04877707,151.27,151.23,4.546e-05]
[1740429073227,6.6102,151.31,151.23,4.546e-05]
[1740429073431,11.64,151.32,151.23,4.546e-05]
[1740429073934,3.795,151.34,151.23,4.546e-05]
[1740429074230,11.64,151.33,151.17,23.6275]
[1740429074430,0.04620205,151.3,151.27,0.0433127]
[1740429074732,11.64,151.33,151.17,214.6275]
[1740429074931,0.04485544,151.3,151.27,0.04406448]
[1740429075224,0.04312417,151.3,151.26,0.04654425]
[1740429075432,6.6093,151.33,151.27,6.6118]
[1740429075628,0.04665045,151.3,151.26,0.04420758]
[1740429075831,11.64,151.35,151.17,214.6275]
[1740429076029,0.04818258,151.3,151.27,6.6116]
[1740429076230,6.6091,151.34,151.28,3.8886]
[1740429077028,11.64,151.37,151.28,3.8886]
[1740429077328,11.64,151.37,151.31,0.04428558]
[1740429078530,6.6099,151.32,151.31,0.04428558]
[1740429080335,11.64,151.38,151.31,0.04428558]
[1740429080539,6.6092,151.33,151.31,0.04428558]
[1740429081338,6.6085,151.35,151.31,0.04428558]
[1740429082949,7.8252,151.39,151.31,0.04428558]
[1740429083446,172.94,151.5,151.31,0.04428558]
[1740429083647,6.6066,151.4,151.31,4.1253]
[1740429083846,6.6066,151.4,151.39,0.04585331]
[1740429084050,6.6066,151.4,151.32,4.1049]
[1740429084243,6.6066,151.4,151.38,0.04507817]
[1740429084450,6.6066,151.4,151.37,0.05069199]
[1740429085242,6.606,151.41,151.37,0.05069199]
[1740429085446,178.16183201,151.5,151.37,0.05069199]
[1740429085641,1.21280293,151.49,151.33,19.86]
[1740429085846,1.21280293,151.49,151.42,0.04750417]
[1740429086542,1.21280293,151.49,151.47,6.603]
[1740429086746,11.62,151.58,151.43,11.7037]
[1740429086946,1.21206883,151.57,151.46,0.04945131]
[1740429087150,6.5997,151.55,151.47,6.6031]
[1740429087651,6.5997,151.55,151.49,0.04961664]
[1740429087844,31.47,151.58,151.49,0.04961664]
[1740429088154,9.5458,151.62,151.49,0.04961664]
[1740429088454,6.5991,151.57,151.48,6.6026]
[1740429088654,6.5991,151.57,151.54,0.04434801]
[1740429089047,6.5994,151.56,151.54,0.04434801]
[1740429089250,31.47,151.61,151.54,0.04434801]
[1740429089649,6.5996,151.55,151.54,4.801e-05]
[1740429090754,19.85,151.44,151.24,60.72256264]
[1740429090955,19.85,151.44,150.98,260.86939911]
[1740429090956,19.86,151.35,150.98,23.0]
[1740429091255,446.53152768,151.34,150.98,23.0]
[1740429091448,19.85,151.23,150.98,23.0]
[1740429091652,19.85,151.21,150.98,23.0]
[1740429091852,11.88,151.22,151.16,215.63676786]
[1740429092152,11.98,151.28,151.16,215.63676786]
[1740429092357,0.04829844,151.21,151.17,0.04395742]
[1740429092559,0.04829844,151.21,151.16,215.63676786]
[1740429092949,12.02,151.2,151.17,0.0444246]
[1740429093552,31.87,151.2,151.17,0.0444246]
[1740429093757,31.87,151.2,151.16,215.63676786]
[1740429093758,26.4661,151.18,151.16,215.63676786]
[1740429093960,26.4661,151.18,151.16,203.67176786]
[1740429094156,26.4661,151.18,151.16,156.41386786]
[1740429094462,19.85,151.18,151.16,141.95756786]
[1740429094859,19.85,151.19,151.16,141.95756786]
[1740429095059,19.85,151.19,151.15,0.04505969]
[1740429099469,0.04829844,151.21,151.15,0.04505969]
[1740429099667,31.91,151.18,151.15,0.04505969]
[1740429099864,31.91,151.18,151.15,0.02505969]
[1740429101274,31.91,151.18,151.0,176.8261]
[1740429101464,31.91,151.18,151.0,199.8261]
[1740429102266,1.21573567,151.17,151.0,199.8261]
[1740429102469,0.04255261,151.11,151.07,0.04937982]
[1740429102663,0.04255261,151.11,151.0,199.8261]
[1740429102858,1.21573567,151.17,151.07,0.04213624]
[1740429103061,1.21573567,151.17,151.0,199.8261]
[1740429103267,0.04524681,151.14,151.1,0.04328438]
[1740429103467,1.21573567,151.17,151.1,0.04328438]
[1740429103661,0.04275825,151.14,151.1,0.04328438]
[1740429103861,19.89275825,151.14,151.1,0.04328438]
[1740429104167,26.4684,151.12,151.1,0.04328438]
[1740429104467,195.21605562,151.11,151.1,0.04328438]
[1740429104665,221.68485562,151.11,151.1,0.04328438]
[1740429104860,29.00839476,151.11,151.1,0.04328438]
[1740429105070,22.38959476,151.11,151.1,0.04328438]
[1740429106972,22.38959476,151.11,151.0,23.0]
[1740429107170,19.85,151.09,151.0,23.0]
[1740429108171,0.04392016,151.06,151.03,0.04742302]
[1740429108361,0.04392016,151.06,151.03,23.04742302]
[1740429110475,19.89392016,151.06,151.03,23.04742302]
[1740429111775,0.04392016,151.06,151.03,23.04742302]
[1740429112375,1.21647036,151.05,151.03,23.04742302]
[1740429112577,19.89392016,151.06,151.03,23.04742302]
[1740429112874,1.21644041,151.05,151.03,23.04742302]
[1740429113074,19.89392016,151.06,151.03,23.04742302]
[1740429113272,1.21644042,151.05,151.03,23.04742302]
[1740429113473,0.04392016,151.06,151.03,23.04742302]
[1740429113668,1.21641906,151.05,151.03,23.0]
[1740429113873,19.89392016,151.06,150.95,0.1]
[1740429114073,1.21641199,151.05,150.95,0.1]
[1740429114375,19.85,151.06,150.95,0.1]
[1740429114574,1.21640267,151.05,150.95,0.1]
[1740429114877,0.04810141,151.02,150.98,0.04854378]
[1740429115075,31.75,151.01,150.98,0.04854378]
[1740429115477,11.9,151.01,150.98,0.04854378]
[1740429116077,0.04810141,151.02,150.98,0.04854378]
[1740429116377,1.32353914,151.11,150.98,0.04854378]
[1740429116577,32.98603811,151.1,150.95,0.1]
[1740429116776,31.77,151.1,150.95,0.1]
[1740429117076,19.85,151.1,150.95,0.1]
[1740429117271,32.98603847,151.09,150.95,0.1]
[1740429117582,0.04395439,151.04,151.01,0.04888356]
[1740429122281,11.92395439,151.04,151.01,0.04888356]
[1740429123081,31.77395439,151.04,151.01,0.04888356]
[1740429123481,38.39615439,151.04,151.01,0.04888356]
[1740429123683,31.77395439,151.04,151.01,0.04888356]
[1740429124277,0.04395439,151.04,151.01,0.04888356]
[1740429124480,31.71,151.09,151.01,0.04888356]
[1740429124784,19.85,151.09,151.01,0.04888356]
[1740429125575,0.04474833,151.07,151.01,0.04888356]
[1740429126384,19.85,151.13,151.01,0.04888356]
[1740429126578,31.73,151.13,151.01,0.04888356]
[1740429126779,31.73,151.13,150.95,0.1]
[1740429126976,19.85,151.11,150.95,0.1]
[1740429127584,0.04950514,151.05,151.01,0.04252779]
[1740429127782,0.04950514,151.05,150.95,0.1]
[1740429127984,0.04808292,151.02,150.98,0.04405662]
[1740429128181,0.04808292,151.02,150.95,0.1]
[1740429128381,0.04808292,151.02,150.98,0.04935767]
[1740429130381,6.6233,151.01,150.98,0.04935767]
[1740429133178,26.4741,150.99,150.98,0.04935767]
[1740429133379,27.69074437,150.99,150.98,0.04935767]
[1740429134585,7.84074437,150.99,150.98,0.04935767]
[1740429134782,6.6241,150.99,150.98,0.04935767]
[1740429136285,7.8407961,150.99,150.98,0.04935767]
[1740429136691,260.59970434,150.99,150.98,0.04935767]
[1740429137086,253.97560434,150.99,150.98,0.04935767]
[1740429137291,240.27090824,150.99,150.95,0.1]
[1740429138094,6.6254,150.96,150.95,0.1]
[1740429139487,11.8499529,150.97,150.95,0.1]
[1740429139892,46.74818278,150.99,150.95,0.1]
[1740429140187,9.37118278,150.99,150.95,0.1]
[1740429140393,3.13918278,150.99,150.95,0.1]
[1740429140787,3.04932182,150.97,150.95,0.1]
[1740429143491,9.67432182,150.97,150.95,0.1]
[1740429143691,0.04751068,150.98,150.95,0.1]
[1740429146495,6.6205,151.08,150.96,19.86]
[1740429146698,73.48240536,151.1,150.96,19.86]
[1740429147595,0.05014443,151.05,151.01,0.04346688]
[1740429148897,0.05014443,151.05,150.95,0.1]
[1740429149100,31.63,151.07,150.95,0.1]
[1740429149293,6.624,151.0,150.95,0.1]
[1740429149496,4.0886,151.09,150.95,0.1]
[1740429149693,11.8,151.08,150.95,0.1]
[1740429149897,6.6231,151.02,150.95,0.1]
[1740429150206,0.04471799,151.03,151.0,0.04755936]
[1740429155404,7.5782,151.16,151.0,0.04755936]
[1740429155706,7.5782,151.16,151.0,178.7037]
[1740429156201,6.6186,151.12,151.0,178.7037]
[1740429156401,7.5782,151.16,151.0,178.7037]
[1740429156705,0.04598164,151.08,151.04,0.04230264]
[1740429156901,7.5782,151.16,151.01,1.04704888]
[1740429157110,0.04940464,151.08,151.04,0.04971973]
[1740429157300,6.6191,151.11,151.01,1.04704888]
[1740429157499,0.04889757,151.08,151.04,0.05009327]
[1740429164001,0.04889757,151.08,151.04,1.09629062]
[1740429166212,0.04889757,151.08,151.04,0.05009327]
[1740429167512,0.04889757,151.08,151.04,1.09659216]
[1740429167909,0.04889757,151.08,151.05,1.04649889]
[1740429168213,0.04889757,151.08,151.04,0.05009327]
[1740429169827,0.04889757,151.08,151.04,198.61379327]
[1740429170127,0.04889757,151.08,151.04,178.75379327]
[1740429175422,0.04889757,151.08,151.04,0.05009327]
[1740429176425,3.7818,151.19,151.04,0.05009327]
[1740429176623,3.7818,151.19,151.01,1.04349479]
[1740429177020,6.6183,151.13,151.0,31.5]
[1740429177226,6.6183,151.13,151.01,1.04391736]
[1740429177529,6.6183,151.13,151.0,31.5]
[1740429177732,6.6183,151.13,151.05,0.04601425]
[1740429178127,3.7818,151.19,151.05,0.04601425]
[1740429178325,23.6318,151.19,150.99,19.86]
[1740429178522,23.6318,151.19,151.1,0.04995737]
[1740429178728,23.6318,151.19,150.99,19.86]
[1740429179129,6.6191,151.11,150.99,19.86]
[1740429179629,6.6191,151.11,151.01,31.27856211]
[1740429179834,0.04897745,151.07,151.03,0.04981985]
[1740429185739,0.04897745,151.07,151.05,27.0612801]
[1740429186638,0.04897745,151.07,151.05,33.6824801]
[1740429187537,0.04897745,151.07,151.05,27.0612801]
[1740429187742,0.04897745,151.07,151.06,6.621]
[1740429187938,7.745e-05,151.07,151.06,6.621]
[1740429188339,7.745e-05,151.07,151.06,26.481]
[1740429189139,7.745e-05,151.07,151.06,205.1847]
[1740429189337,4.1516,151.2,151.18,6.6155]
[1740429189741,4.1516,151.2,151.13,19.86]
[1740429189937,7.8429,151.22,151.13,19.86]
[1740429190133,7.8429,151.22,151.13,198.5637]
[1740429190333,4.1516,151.25,151.16,0.04234741]
[1740429190546,7.823,151.27,151.16,0.04234741]
[1740429190747,7.823,151.27,151.17,19.86]
[1740429190939,7.823,151.27,151.17,198.5637]
[1740429191139,7.823,151.27,151.2,0.04512848]
[1740429192245,7.823,151.27,151.25,6.6126]
[1740429192442,7.823,151.27,151.17,225.6249801]
[1740429192641,7.823,151.27,151.24,0.04792596]
[1740429192842,7.823,151.27,151.17,225.6249801]
[1740429193047,7.823,151.27,151.24,0.05027757]
[1740429193345,7.823,151.27,151.24,0.04561552]
[1740429193742,7.823,151.27,151.26,6.6123]
[1740429193944,7.823,151.27,151.24,0.04561552]
[1740429195137,19.85,151.4,151.24,0.04561552]
[1740429195340,7.5486,151.36,151.2,198.5637]
[1740429195545,7.5486,151.36,151.3,0.04768815]
[1740429195749,14.1566,151.36,151.27,6.6114]
[1740429196138,14.1566,151.36,151.3,0.04225394]
[1740429196340,7.5486,151.36,151.29,6.6108]
[1740429196537,7.5486,151.36,151.31,0.0452219]
[1740429198249,7.5486,151.36,151.31,6.6551219]
[1740429198450,7.5486,151.36,151.31,0.0452219]
[1740429200047,7.5486,151.36,151.33,6.6091]
[1740429200439,7.5486,151.36,151.31,0.0452219]
[1740429200641,7.5486,151.36,151.35,6.6083]
[1740429200841,7.5486,151.36,151.31,0.0452219]
[1740429201246,7.5486,151.36,151.35,6.6083]
[1740429201442,7.5486,151.36,151.31,0.0452219]
[1740429202452,7.5486,151.36,151.35,6.6083]
[1740429204457,3.9318,151.46,151.31,0.0452219]
[1740429204645,7.9401,151.43,151.28,198.5637]
[1740429204849,7.9401,151.43,151.38,6.607]
[1740429205756,7.9401,151.43,151.37,0.05057399]
[1740429205954,7.9401,151.43,151.28,198.5637]
[1740429206948,7.9401,151.43,151.34,0.05010252]
[1740429207152,0.0445875,151.37,151.34,0.05010252]
[1740429207556,0.0445875,151.37,151.36,6.6079]
[1740429207756,8.75e-05,151.37,151.36,6.6079]
[1740429209353,8.75e-05,151.37,151.36,26.4679]
[1740429209761,8.75e-05,151.37,151.36,199.2879]
[1740429210956,8.75e-05,151.37,151.36,377.9916]
[1740429213862,3.9757,151.49,151.48,6.6027]
[1740429216562,3.7457,151.53,151.52,6.6009]
[1740429216862,7.9632,151.6,151.48,172.72]
[1740429217063,3.7564,151.59,151.51,0.04422485]
[1740429217659,3.7564,151.59,151.58,6.5983]
[1740429218059,2.72357925,151.74,151.48,192.58]
[1740429218060,6.5921,151.73,151.57,0.04316763]
[1740429218260,3.7904,151.67,151.53,19.86]
[1740429218458,3.7904,151.67,151.63,0.04493797]
[1740429218660,3.7904,151.67,151.53,202.5118]
[1740429218858,3.7904,151.67,151.63,0.04385656]
[1740429219058,3.7904,151.67,151.53,202.5118]
[1740429219260,3.7904,151.67,151.63,0.05055558]
[1740429219559,3.7904,151.67,151.53,202.5118]
[1740429219759,3.7904,151.67,151.63,0.04379927]
[1740429220063,3.7904,151.67,151.61,6.5966]
[1740429220857,3.7904,151.67,151.6,6.5974]
[1740429221065,0.04503139,151.66,151.62,0.04359745]
[1740429221564,0.04503139,151.66,151.5,172.62]
[1740429221758,1.21127586,151.65,151.5,172.62]
[1740429221966,1.21127586,151.64,151.5,172.62]
[1740429222167,15.3904,151.67,151.5,172.62]
[1740429222463,1.21132248,151.66,151.5,172.62]
[1740429222664,0.05073286,151.6,151.57,0.05021238]
[1740429223060,3.7904,151.67,151.51,19.86]
[1740429223369,0.04625243,151.6,151.57,0.04822262]
[1740429223759,4.0593,151.66,151.51,202.5085]
[1740429223959,0.04236972,151.6,151.57,0.04952284]
[1740429224762,0.04236972,151.6,151.58,6.598]
[1740429224962,0.04236972,151.6,151.57,0.04952284]
[1740429225659,0.04236972,151.6,151.59,6.5979]
[1740429227158,3.7662,151.65,151.59,19.86]
[1740429227961,3.7662,151.65,151.63,6.5958]
[1740429228159,4.0593,151.66,151.57,11.6]
[1740429228362,0.04644275,151.66,151.62,0.04346422]
[1740429228566,0.04644275,151.66,151.65,6.5953]